bitfinex/quotes_ETHUSD_20240630
["timestamp","ask_amount","ask_price","bid_price","bid_amount"]
[1719775563314,0.835,3428.7,3428.4,0.25501959]
[1719775563816,0.835,3428.7,3428.5,0.08126153]
[1719775564106,0.835,3428.7,3428.4,0.25501959]
[1719775564486,0.835,3428.7,3428.6,0.08122718]
[1719775564670,0.835,3428.7,3428.5,0.08126153]
[1719775564873,0.835,3428.7,3428.6,0.08122718]
[1719775568007,0.835,3428.7,3428.5,0.28051811]
[1719775569391,2.298,3428.9,3428.5,0.28051811]
[1719775569720,0.835,3428.6,3428.5,0.28051811]
[1719775570524,2.298,3428.9,3428.5,0.28051811]
[1719775570692,0.835,3428.7,3428.5,0.28051811]
[1719775573238,0.835,3428.7,3427.6,3.75246]
[1719775573239,0.835,3428.7,3427.8,2.3195]
[1719775573628,0.835,3428.7,3427.9,0.07885549]
[1719775578637,2.298,3428.9,3427.9,0.07885549]
[1719775578798,0.835,3428.7,3427.9,0.07885549]
[1719775578997,2.298,3428.9,3428.0,2.39003455]
[1719775579322,3.133,3428.9,3428.0,3.54371149]
[1719775580165,0.835,3428.9,3428.1,2.39003453]
[1719775580511,0.835,3428.9,3428.1,2.46884156]
[1719775583677,7.72291619,3429.3,3428.1,3.30384156]
[1719775583873,0.835,3429.1,3428.3,2.3317]
[1719775584223,3.3332,3429.1,3428.4,0.07871005]
[1719775584874,0.835,3428.9,3428.4,0.07871005]
[1719775589459,2.4982,3429.1,3428.4,0.07871005]
[1719775589460,0.835,3428.7,3428.4,0.07871005]
[1719775589865,0.835,3428.9,3428.4,0.07871005]
[1719775590173,0.835,3428.9,3428.3,2.3317]
[1719775590686,0.835,3428.9,3428.4,0.07871005]
[1719775591059,0.835,3428.9,3428.3,2.3317]
[1719775591572,0.835,3428.9,3428.4,0.07871005]
[1719775591966,0.835,3428.9,3428.3,2.3317]
[1719775592563,0.835,3428.9,3428.4,0.07871711]
[1719775592892,0.835,3428.9,3427.9,2.4794]
[1719775593066,2.4982,3429.1,3428.0,0.33144]
[1719775593385,0.835,3428.8,3428.0,0.41028642]
[1719775595885,0.835,3428.6,3428.0,0.41028642]
[1719775607441,3.2087,3428.8,3428.0,0.41028642]
[1719775607607,0.835,3428.8,3428.2,2.2682]
[1719775607811,0.835,3428.8,3428.3,0.07877679]
[1719775608012,0.835,3428.8,3428.2,2.2682]
[1719775608202,0.835,3428.8,3428.3,0.07877679]
[1719775608402,0.835,3428.8,3428.2,2.2682]
[1719775608615,0.835,3428.8,3428.3,0.07877679]
[1719775608935,0.835,3428.8,3428.2,2.2682]
[1719775609142,0.835,3428.8,3428.4,0.07874244]
[1719775609350,0.835,3428.8,3428.3,0.07877679]
[1719775609528,0.835,3428.8,3428.5,0.07870809]
[1719775609716,0.835,3428.8,3428.4,0.07874244]
[1719775610046,0.835,3428.8,3428.5,0.07870809]
[1719775610225,0.835,3428.8,3428.2,2.2682]
[1719775610544,0.835,3428.8,3428.3,0.30559679]
[1719775610693,0.835,3428.8,3428.3,0.07877679]
[1719775611003,0.835,3428.8,3428.2,2.2682]
[1719775611336,0.835,3428.8,3428.3,0.07877679]
[1719775611836,0.835,3428.8,3428.4,0.07874244]
[1719775612042,0.835,3428.8,3428.2,2.2682]
[1719775612238,0.835,3428.8,3428.3,0.07877679]
[1719775612429,0.835,3428.8,3428.2,2.49502]
[1719775612755,0.835,3428.8,3428.3,0.07877679]
[1719775613116,0.835,3428.8,3428.2,2.49502]
[1719775613439,0.835,3428.8,3428.3,0.07877679]
[1719775613602,0.835,3428.8,3428.2,2.49502]
[1719775613949,0.835,3428.8,3428.3,0.07877679]
[1719775614303,0.835,3428.8,3428.2,2.49502]
[1719775614494,0.835,3428.8,3428.4,0.07874244]
[1719775614700,0.835,3428.8,3428.3,0.07877679]
[1719775614908,0.835,3428.8,3428.5,0.07870809]
[1719775615113,0.835,3428.8,3428.4,0.07874244]
[1719775615329,0.835,3428.8,3428.6,0.07867375]
[1719775615524,0.835,3428.8,3428.5,0.07870809]
[1719775615744,0.835,3428.8,3428.7,0.0786394]
[1719775616106,0.835,3428.8,3428.2,2.2682]
[1719775616340,0.835,3428.8,3428.7,0.0786394]
[1719775616518,0.835,3428.8,3428.2,2.2682]
[1719775616706,0.835,3428.8,3428.7,0.0786394]
[1719775616910,0.835,3428.8,3428.2,2.2682]
[1719775617108,0.835,3428.8,3428.7,0.0786394]
[1719775617630,0.835,3428.8,3428.2,2.2682]
[1719775617833,0.835,3428.6,3428.3,0.07876666]
[1719775618034,0.835,3428.6,3428.2,2.2682]
[1719775618199,0.835,3428.6,3428.3,0.07876666]
[1719775618428,0.835,3428.6,3428.2,2.2682]
[1719775618663,0.835,3428.6,3428.3,0.07876666]
[1719775619070,0.835,3428.6,3428.2,2.2682]
[1719775619363,0.835,3428.6,3428.4,0.07873231]
[1719775619526,0.835,3428.6,3428.3,0.07876666]
[1719775619726,0.835,3428.6,3428.5,0.07868885]
[1719775619954,0.835,3428.6,3428.2,2.2682]
[1719775619955,0.835,3428.6,3428.4,0.07872319]
[1719775620127,0.835,3428.6,3428.5,0.07868885]
[1719775620526,0.835,3428.6,3428.2,2.2682]
[1719775620754,0.835,3428.6,3428.5,0.07868986]
[1719775621252,0.835,3428.6,3428.2,2.2682]
[1719775621443,0.835,3428.6,3428.3,0.07875855]
[1719775621645,0.835,3428.6,3428.2,2.2682]
[1719775621858,0.835,3428.6,3428.3,0.07875855]
[1719775622229,0.835,3428.6,3428.2,2.2682]
[1719775622461,0.835,3428.6,3428.3,0.07875855]
[1719775622864,0.835,3428.6,3428.2,2.2682]
[1719775623070,0.835,3428.6,3428.4,0.07872724]
[1719775623277,0.835,3428.6,3428.3,0.07876159]
[1719775623575,3.163,3428.6,3428.5,0.0786929]
[1719775623743,3.163,3428.6,3428.4,0.07872724]
[1719775623944,3.163,3428.6,3428.5,0.0786929]
[1719775624358,3.163,3428.6,3427.8,2.4631]
[1719775624543,3.163,3428.6,3428.5,0.07869391]
[1719775624757,3.163,3428.6,3427.9,0.24631]
[1719775624956,3.163,3428.6,3428.5,0.07869391]
[1719775625159,3.163,3428.6,3427.9,0.24631]
[1719775625476,2.328,3428.8,3427.9,0.24631]
[1719775625650,0.835,3428.5,3428.0,0.34981477]
[1719775629893,2.352,3428.4,3428.0,0.07887377]
[1719775630097,0.835,3428.3,3428.0,0.07887377]
[1719775630300,0.835,3428.1,3427.5,2.6330931]
[1719775633703,0.835,3427.6,3427.0,2.41104129]
[1719775633868,3.187,3427.6,3427.0,2.3344]
[1719775635302,0.835,3427.5,3427.0,2.3344]
[1719775635617,0.835,3427.5,3427.0,2.56784]
[1719775638802,0.835,3427.5,3427.1,0.07926914]
[1719775639363,2.352,3427.6,3427.1,0.07926914]
[1719775639696,3.187,3427.6,3427.1,0.07926914]
[1719775640012,3.0,3428.0,3427.2,2.4413]
[1719775640210,3.0,3428.0,3427.3,0.41515629]
[1719775640498,3.0,3428.0,3427.3,0.49450768]
[1719775643453,3.0,3428.0,3427.4,2.4413]
[1719775643583,3.0,3428.0,3427.5,0.05834545]
[1719775643784,3.0,3428.0,3427.5,0.13758048]
[1719775644099,3.0,3428.0,3427.5,0.43541443]
[1719775644417,3.0,3428.0,3427.6,0.07920066]
[1719775644650,3.0,3428.0,3427.5,0.37706898]
[1719775644825,3.835,3428.0,3427.6,0.07920066]
[1719775645023,3.835,3428.0,3427.5,0.37706898]
[1719775645379,0.835,3428.0,3427.6,0.07920066]
[1719775645585,3.0,3427.9,3427.6,0.07920066]
[1719775645824,0.835,3428.0,3427.5,0.37706898]
[1719775646223,3.0,3428.1,3427.6,0.41938303]
[1719775646525,0.835,3428.2,3427.6,0.36103756]
[1719775647815,3.0,3428.3,3427.7,0.0583401]
[1719775648017,3.835,3428.5,3427.8,2.52041978]
[1719775648325,3.835,3428.5,3427.8,0.07911978]
[1719775648326,0.835,3428.3,3427.8,0.07911978]
[1719775648747,0.835,3428.3,3427.5,2.4413]
[1719775648908,0.835,3428.3,3427.9,0.07908238]
[1719775649116,0.835,3428.3,3427.6,0.32763]
[1719775649610,0.835,3428.3,3427.7,0.0791511]
[1719775652752,0.835,3428.3,3427.8,2.3909]
[1719775652956,3.0,3428.5,3427.8,2.3909]
[1719775653109,0.835,3428.4,3427.9,0.36468459]
[1719775653314,0.835,3428.4,3427.9,0.28560221]
[1719775660030,3.0,3428.7,3427.9,0.34394313]
[1719775660382,3.0,3428.7,3428.1,2.3056]
[1719775660561,3.835,3428.8,3428.1,2.3056]
[1719775660761,3.835,3428.8,3428.2,0.35170878]
[1719775660949,0.835,3428.8,3428.2,0.35170878]
[1719775661955,3.0,3428.9,3428.3,0.05833457]
[1719775662231,0.835,3428.9,3428.4,2.3843654]
[1719775665429,0.835,3428.7,3428.4,2.3843654]
[1719775665587,0.835,3428.7,3428.5,0.27155473]
[1719775665982,0.835,3428.7,3428.6,0.07863797]
[1719775673794,0.835,3428.7,3428.2,2.2816]
[1719775674230,0.835,3428.7,3428.3,0.07872684]
[1719775674431,0.835,3428.7,3428.2,2.2816]
[1719775674634,0.835,3428.7,3428.3,0.22816]
[1719775674854,0.835,3428.7,3428.3,0.30688076]
[1719775682172,3.0,3428.8,3428.3,0.30688076]
[1719775682392,3.3331,3428.9,3428.3,0.30688076]
[1719775682684,0.835,3428.7,3428.3,0.30688076]
[1719775682984,0.835,3428.7,3428.3,0.22816]
[1719775683282,0.835,3428.7,3428.4,0.07824909]
[1719775683645,0.835,3428.7,3428.0,2.4445]
[1719775683846,0.835,3428.7,3428.1,0.35136236]
[1719775686264,0.835,3428.7,3428.2,0.05833125]
[1719775686462,0.835,3428.7,3428.3,0.07830875]
[1719775686700,0.835,3428.7,3428.2,0.05833125]
[1719775686847,0.835,3428.7,3428.3,0.07830875]
[1719775687048,0.835,3428.7,3428.3,0.28541502]
[1719775687264,0.835,3428.7,3428.4,0.0782744]
[1719775689594,0.835,3428.7,3428.4,2.3512744]
[1719775689975,3.0,3429.0,3428.4,2.3512744]
[1719775690304,0.835,3428.9,3428.4,2.3512744]
[1719775690895,0.835,3428.7,3428.4,2.3512744]
[1719775692604,0.835,3428.7,3428.4,0.0782744]
[1719775693287,0.835,3428.7,3428.2,2.273]
[1719775693462,0.835,3428.7,3428.3,0.07830673]
[1719775693669,0.835,3428.7,3428.2,2.273]
[1719775693971,0.835,3428.7,3428.3,0.07830673]
[1719775694373,0.835,3428.7,3428.2,2.273]
[1719775694596,0.835,3428.7,3428.4,0.07827238]
[1719775694803,0.835,3428.7,3428.3,0.07830673]
[1719775694969,0.835,3428.7,3428.2,2.273]
[1719775695169,0.835,3428.7,3428.4,0.07827238]
[1719775695572,0.835,3428.7,3428.2,2.273]
[1719775695984,0.835,3428.7,3428.3,0.07830673]
[1719775696390,0.835,3428.7,3428.2,2.273]
[1719775696684,0.835,3428.7,3428.4,0.07827238]
[1719775696883,0.835,3428.7,3428.2,2.273]
[1719775697111,0.835,3428.7,3428.3,0.07830673]
[1719775697423,0.835,3428.7,3428.2,2.273]
[1719775697715,0.835,3428.7,3428.3,0.30560875]
[1719775698013,3.0,3429.0,3428.3,0.36394016]
[1719775698221,2.3091,3429.1,3428.3,0.36394016]
[1719775698222,0.835,3428.7,3428.3,0.36394016]
[1719775699186,0.835,3428.7,3428.3,0.30560875]
[1719775705329,0.835,3428.7,3428.3,0.07830875]
[1719775705836,0.835,3428.7,3428.2,2.273]
[1719775706036,0.835,3428.7,3428.4,0.0782744]
[1719775706250,0.835,3428.7,3428.3,0.07830875]
[1719775706444,0.835,3428.7,3428.2,2.273]
[1719775706744,3.0,3429.0,3428.3,0.07830875]
[1719775706940,0.835,3428.7,3428.3,0.07830875]
[1719775707147,0.835,3428.7,3428.2,2.273]
[1719775707526,0.835,3428.7,3428.3,0.07830875]
[1719775707969,0.835,3428.7,3428.2,2.273]
[1719775708470,0.835,3428.7,3428.3,0.07830979]
[1719775708836,0.835,3428.7,3428.2,2.273]
[1719775709171,0.835,3428.7,3428.3,0.07830979]
[1719775709345,0.835,3428.7,3428.2,2.273]
[1719775709546,0.835,3428.7,3428.4,0.07827544]
[1719775709751,0.835,3428.7,3428.2,2.273]
[1719775710278,0.835,3428.7,3428.3,0.07830979]
[1719775710634,0.835,3428.7,3428.2,2.273]
[1719775710927,0.835,3428.7,3428.3,0.07830979]
[1719775711132,0.835,3428.7,3428.2,2.273]
[1719775711369,0.835,3428.7,3428.3,0.07830979]
[1719775711766,0.835,3428.7,3428.2,2.273]
[1719775712128,0.835,3428.7,3428.3,0.07830979]
[1719775712332,0.835,3428.7,3428.2,2.273]
[1719775712564,0.835,3428.7,3428.3,0.07825657]
[1719775712767,0.835,3428.7,3428.2,2.273]
[1719775713243,0.835,3428.7,3428.3,0.07825657]
[1719775713638,0.835,3428.7,3428.2,2.273]
[1719775713992,0.835,3428.7,3428.3,0.07825657]
[1719775714348,0.835,3428.7,3428.2,2.273]
[1719775714749,0.835,3428.7,3428.3,0.07826163]
[1719775715169,0.835,3428.5,3427.6,2.419]
[1719775715481,2.50486852,3428.6,3427.6,2.419]
[1719775715482,0.835,3428.3,3427.6,2.419]
[1719775715647,0.835,3428.3,3427.7,0.07847283]
[1719775716276,0.835,3428.6,3427.8,2.419]
[1719775716508,0.835,3428.6,3427.9,0.24974728]
[1719775716672,0.835,3428.6,3427.9,0.32815139]
[1719775717010,3.0,3428.8,3427.9,0.32815139]
[1719775717011,0.835,3428.4,3427.9,0.32815139]
[1719775718269,0.835,3428.4,3427.9,0.07840411]
[1719775724095,2.2926,3428.9,3428.0,0.05834238]
[1719775724305,2.2926,3428.9,3427.9,0.07840411]
[1719775724306,3.1276,3428.9,3428.1,2.419]
[1719775724473,0.835,3428.7,3428.1,2.419]
[1719775724674,0.835,3428.7,3428.2,0.32807082]
[1719775724912,0.835,3428.7,3428.2,0.07833041]
[1719775725287,0.835,3428.7,3428.1,2.419]
[1719775725806,0.835,3428.7,3428.2,0.07833041]
[1719775726227,0.835,3428.7,3428.1,2.419]
[1719775726610,0.835,3428.7,3428.2,0.07833041]
[1719775727118,0.835,3428.7,3428.1,2.419]
[1719775727289,0.835,3428.7,3428.1,2.6609]
[1719775727487,0.835,3428.7,3428.2,0.07833041]
[1719775736774,3.0,3428.8,3428.2,0.07833041]
[1719775737068,3.0,3428.7,3428.2,0.07833041]
[1719775737446,3.835,3428.8,3428.2,0.07833041]
[1719775737655,3.835,3428.8,3428.2,0.35225345]
[1719775739965,3.0,3428.8,3428.3,2.3745]
[1719775740292,0.835,3428.9,3428.3,2.3745]
[1719775740293,0.835,3428.9,3428.4,0.07824751]
[1719775740871,3.0,3429.1,3428.4,0.07824751]
[1719775741200,0.835,3428.9,3428.4,0.07824751]
[1719775741490,0.835,3428.9,3428.4,0.35091457]
[1719775742687,2.13263127,3430.6,3428.4,0.35091457]
[1719775742917,1.60442682,3429.8,3428.7,2.3745]
[1719775743202,0.835,3429.5,3428.7,2.43282523]
[1719775743404,0.835,3429.5,3428.8,0.07808586]
[1719775743553,0.835,3429.5,3428.8,0.25109111]
[1719775746798,0.835,3429.5,3428.9,0.07805152]
[1719775747382,0.835,3429.5,3429.0,2.3745]
[1719775747803,3.0,3429.8,3429.1,0.07798284]
[1719775748159,0.835,3429.6,3429.2,0.07794851]
[1719775748484,0.835,3429.6,3429.0,2.3745]
[1719775748683,0.835,3429.6,3429.3,0.07791418]
[1719775748861,0.835,3429.6,3429.1,0.26839163]
[1719775749201,0.835,3429.6,3429.4,0.07787985]
[1719775749393,0.835,3429.6,3429.0,2.3745]
[1719775749603,0.835,3429.6,3429.5,0.07784552]
[1719775749758,0.835,3429.6,3429.0,2.3745]
[1719775750093,0.835,3429.6,3429.1,0.07798284]
[1719775754895,3.0,3429.8,3429.1,0.07798284]
[1719775755101,0.835,3429.6,3429.1,0.07798284]
[1719775755707,0.835,3429.6,3429.0,2.72639163]
[1719775756203,0.835,3429.6,3429.1,0.07784919]
[1719775763795,3.0,3429.8,3429.1,0.07784919]
[1719775763999,0.835,3429.6,3429.1,0.07784919]
[1719775764982,0.835,3429.4,3429.1,0.07784919]
[1719775765280,0.835,3429.4,3428.5,2.3457]
[1719775765686,0.835,3429.4,3428.6,0.07802089]
[1719775765886,4.27201,3429.8,3428.6,0.07802089]
[1719775765887,0.835,3428.9,3428.6,0.07802089]
[1719775767092,0.835,3429.1,3428.6,0.07802089]
[1719775780267,2.3876,3429.5,3428.6,0.07802089]
[1719775780434,0.835,3429.2,3428.6,0.07802089]
[1719775794670,0.835,3429.0,3428.6,0.07802089]
[1719775794871,0.835,3428.8,3428.6,0.07802089]
[1719775795192,0.835,3428.8,3428.5,2.3457]
[1719775795871,0.835,3428.8,3428.6,0.07736539]
[1719775802590,0.31629,3428.7,3428.6,0.07736539]
[1719775808605,2.3279,3428.9,3428.6,0.07736539]
[1719775808814,0.835,3428.7,3428.6,0.07736539]
[1719775817501,0.835,3428.7,3428.0,2.3133]
[1719775817685,0.835,3428.7,3428.6,0.07739974]
[1719775817903,0.835,3428.7,3428.0,2.3133]
[1719775818103,2.3279,3428.9,3428.0,2.54463]
[1719775818306,0.835,3428.5,3428.1,0.07758362]
[1719775831232,2.3279,3428.9,3428.1,0.07758362]
[1719775831557,0.835,3428.7,3428.1,0.07758362]
[1719775833840,3.0,3429.2,3428.1,0.07758362]
[1719775834042,0.835,3428.7,3428.2,2.4315]
[1719775834439,0.835,3428.7,3428.3,0.07756139]
[1719775834863,0.835,3428.7,3428.2,2.4315]
[1719775835063,0.835,3428.7,3428.4,0.07752704]
[1719775835276,0.835,3428.7,3428.3,0.07756139]
[1719775835482,0.835,3428.7,3428.5,0.07747854]
[1719775835654,0.835,3428.7,3428.4,0.07751289]
[1719775835855,0.835,3428.7,3428.6,0.07744521]
[1719775836391,0.835,3428.7,3428.2,2.4315]
[1719775836570,0.835,3428.7,3428.6,0.07744521]
[1719775836761,0.835,3428.7,3428.2,2.4315]
[1719775837085,0.835,3428.7,3428.3,0.07754825]
[1719775837582,0.835,3428.7,3428.4,0.0775139]
[1719775837941,0.835,3428.7,3428.2,2.4315]
[1719775838143,5.4321,3429.2,3428.3,0.07754825]
[1719775838442,0.835,3428.9,3428.2,2.4315]
[1719775838835,3.0,3429.2,3428.3,0.13588475]
[1719775839151,0.835,3428.9,3428.4,2.2996]
[1719775839349,0.835,3428.9,3428.5,0.07748562]
[1719775839555,0.835,3428.9,3428.4,2.52956]
[1719775839852,0.835,3428.9,3428.5,0.07747652]
[1719775840296,0.835,3428.9,3428.4,2.52956]
[1719775840476,0.835,3428.9,3428.6,0.07744218]
[1719775840675,0.835,3428.9,3428.5,0.07747652]
[1719775840989,0.835,3428.9,3428.6,0.07744218]
[1719775841445,0.835,3428.9,3428.4,2.52956]
[1719775841645,0.835,3428.9,3428.7,0.07740783]
[1719775841989,0.835,3428.9,3428.4,2.2996]
[1719775842173,0.835,3428.9,3428.4,2.52956]
[1719775842479,0.835,3428.9,3428.5,0.07747652]
[1719775842883,0.835,3428.9,3428.4,2.52956]
[1719775843191,0.835,3428.9,3428.5,0.07747652]
[1719775843547,0.835,3428.9,3428.4,2.2996]
[1719775844282,0.835,3428.9,3428.5,0.07747652]
[1719775844584,0.835,3428.9,3428.6,0.07742298]
[1719775844745,0.835,3428.9,3428.4,2.2996]
[1719775844946,0.835,3428.9,3428.5,0.07745732]
[1719775845186,0.835,3428.9,3428.4,2.2996]
[1719775845382,0.835,3428.9,3428.6,0.07742298]
[1719775845588,0.835,3428.9,3428.4,2.2996]
[1719775845752,0.21225865,3428.8,3428.4,2.2996]
[1719775845950,0.21225865,3428.8,3428.5,0.07745732]
[1719775846196,0.835,3428.9,3428.4,2.2996]
[1719775846392,0.835,3428.9,3428.6,0.07742298]
[1719775846612,0.21225649,3428.8,3428.5,0.07745732]
[1719775846891,0.21225649,3428.8,3428.7,0.07738863]
[1719775847093,0.21225649,3428.8,3428.6,0.07742298]
[1719775847395,0.835,3428.7,3428.4,2.2996]
[1719775850975,0.835,3428.7,3427.9,2.418]
[1719775851181,0.835,3428.7,3428.0,0.40292908]
[1719775851558,0.835,3428.7,3428.1,2.418]
[1719775851787,0.835,3428.7,3428.2,0.07756037]
[1719775853684,6.94947145,3429.3,3428.3,2.47633453]
[1719775853944,1.04724062,3429.2,3428.3,2.418]
[1719775854238,0.835,3429.2,3428.5,2.494]
[1719775854588,0.835,3429.2,3428.6,0.07742298]
[1719775854988,3.835,3429.2,3428.6,0.07742298]
[1719775855190,0.21224227,3429.1,3428.5,2.494]
[1719775855437,0.835,3429.2,3428.6,0.07742298]
[1719775855940,0.835,3429.0,3428.6,0.07742298]
[1719775856147,0.835,3429.0,3428.5,2.494]
[1719775859036,0.835,3429.0,3428.1,2.494]
[1719775859037,1.15443,3429.0,3428.1,2.494]
[1719775859284,0.835,3428.8,3428.1,2.494]
[1719775859420,0.835,3428.8,3428.3,2.494]
[1719775859620,0.835,3429.0,3428.3,2.494]
[1719775859965,0.835,3429.0,3428.4,0.41811872]
[1719775860264,0.835,3428.8,3428.4,0.0774644]
[1719775861066,0.835,3428.8,3428.3,2.494]
[1719775861237,0.835,3428.8,3428.5,0.07743005]
[1719775861443,0.835,3428.8,3428.4,0.0774644]
[1719775861759,0.835,3428.8,3428.6,0.0773957]
[1719775862068,0.835,3428.8,3428.7,0.07736136]
[1719775862451,0.835,3428.8,3428.3,2.494]
[1719775862980,0.835,3428.8,3428.4,0.0774644]
[1719775863527,3.0,3429.6,3428.4,0.33461084]
[1719775863772,0.835,3429.0,3428.3,2.494]
[1719775864062,0.835,3429.0,3428.4,0.07747046]
[1719775864500,0.835,3429.0,3428.3,2.494]
[1719775864855,0.835,3429.0,3428.4,0.07747046]
[1719775865281,0.835,3429.0,3428.3,2.494]
[1719775865498,0.835,3429.0,3428.4,0.2494]
[1719775866174,0.835,3429.0,3428.3,2.494]
[1719775866374,0.835,3429.0,3428.4,0.07747046]
[1719775866567,0.835,3429.0,3428.3,2.494]
[1719775866783,0.835,3429.0,3428.4,0.07747046]
[1719775867121,0.835,3429.0,3428.3,2.494]
[1719775867300,0.835,3429.0,3428.3,2.8269]
[1719775867500,0.835,3429.0,3428.4,0.07747046]
[1719775878544,0.835,3429.2,3428.5,2.4503]
[1719775878707,0.21224148,3429.1,3428.5,2.4503]
[1719775878912,0.21224148,3429.1,3428.6,0.07740377]
[1719775880627,0.835,3429.2,3428.6,0.07740377]
[1719775880975,0.21224413,3429.1,3428.6,0.07740377]
[1719775883751,3.0,3429.3,3428.6,0.07740377]
[1719775883923,0.835,3429.1,3428.6,0.07740377]
[1719775884251,0.21224595,3429.0,3428.6,0.07740377]
[1719775884457,0.835,3429.1,3428.6,0.07740377]
[1719775884861,0.21224599,3429.0,3428.6,0.07740377]
[1719775886621,0.835,3429.1,3428.6,0.07740377]
[1719775887234,0.21224664,3429.0,3428.6,0.07740377]
[1719775887427,0.835,3429.1,3428.6,0.07740377]
[1719775887631,0.21224664,3429.0,3428.6,0.07740377]
[1719775888869,0.21224664,3429.0,3428.5,2.4503]
[1719775890495,0.835,3429.1,3428.5,2.4503]
[1719775890791,0.21224789,3429.0,3428.5,2.4503]
[1719775893490,0.835,3429.1,3428.5,2.4503]
[1719775893881,0.21224784,3429.0,3428.5,2.4503]
[1719775895905,0.21224784,3429.0,3428.1,2.2966]
[1719775895906,0.835,3428.9,3428.1,2.2966]
[1719775896101,0.21226181,3428.8,3428.6,0.07663788]
[1719775896261,0.21226181,3428.8,3428.1,2.2966]
[1719775896775,0.835,3428.9,3428.2,0.07678844]
[1719775896980,0.21225865,3428.8,3428.2,0.07678844]
[1719775900074,0.835,3428.9,3428.2,0.07678844]
[1719775900265,0.21225728,3428.8,3428.2,0.07678844]
[1719775903827,0.835,3428.9,3428.2,0.07678844]
[1719775903982,0.21226378,3428.8,3428.2,0.07678844]
[1719775906456,0.21226466,3428.7,3428.2,0.07678844]
[1719775906620,1.14389,3428.9,3428.2,0.07678844]
[1719775906941,0.21226615,3428.8,3428.2,0.07678844]
[1719775909614,1.14389,3428.9,3428.2,0.07678844]
[1719775910006,0.21221201,3428.8,3428.2,0.07678844]
[1719775910212,1.14389,3428.9,3428.2,0.07678844]
[1719775910611,0.21225905,3428.8,3428.2,0.07678844]
[1719775910816,1.14389,3428.9,3428.2,0.07678844]
[1719775911230,0.21225939,3428.8,3428.2,0.07678844]
[1719775911434,1.14389,3428.9,3428.2,0.07678844]
[1719775911902,0.339779,3428.8,3428.2,0.07678844]
[1719775912960,0.835,3428.5,3428.2,0.07678844]
[1719775913171,1.95823459,3429.7,3427.4,2.4866]
[1719775913172,0.835,3428.3,3427.4,2.4866]
[1719775913464,2.4137,3428.6,3427.4,2.4866]
[1719775913745,1.04728618,3428.5,3427.6,2.4866]
[1719775913928,0.21228618,3428.4,3427.6,2.4866]
[1719775914128,1.18109862,3428.5,3427.6,2.4866]
[1719775914511,0.835,3428.3,3427.6,2.4866]
[1719775914873,0.835,3428.1,3427.6,2.4866]
[1719775916393,0.835,3427.9,3427.3,2.4462]
[1719775920345,3.1887,3427.9,3427.3,2.4462]
[1719775920790,3.1887,3427.9,3427.1,2.4462]
[1719775921194,3.1887,3427.9,3426.3,7.32]
[1719775921195,0.835,3427.5,3427.2,0.07729644]
[1719775921506,0.835,3427.5,3426.9,2.4462]
[1719775921671,0.835,3427.5,3427.3,0.07726207]
[1719775921854,0.835,3427.5,3426.9,2.4462]
[1719775922198,0.835,3427.5,3427.0,0.07736519]
[1719775922566,0.835,3427.5,3426.9,2.4462]
[1719775923098,3.1887,3427.5,3426.9,2.4462]
[1719775923326,10.88997986,3428.2,3426.9,2.4462]
[1719775923468,0.835,3427.5,3426.9,2.4462]
[1719775927090,0.981,3427.5,3426.9,2.4462]
[1719775927929,0.981,3427.5,3425.9,2.4462]
[1719775927930,0.835,3427.2,3425.9,2.4462]
[1719775928226,0.835,3427.2,3427.0,0.07746809]
[1719775928376,1.2331,3427.2,3426.6,2.4462]
[1719775928579,0.835,3427.2,3427.1,0.07743472]
[1719775928800,0.835,3427.2,3426.6,2.4462]
[1719775929289,0.835,3427.2,3426.7,0.07757224]
[1719775930095,3.146,3427.5,3426.7,0.07757224]
[1719775930306,0.981,3427.5,3426.7,0.07757224]
[1719775930508,4.61447,3427.5,3426.7,0.07757224]
[1719775930916,3.77947,3427.5,3426.8,2.4284]
[1719775931095,3.146,3427.5,3426.8,2.50601352]
[1719775932222,0.981,3427.5,3426.8,2.50601352]
[1719775932396,3.981,3427.5,3426.8,2.50601352]
[1719775932777,3.981,3427.5,3426.8,2.4284]
[1719775932979,3.981,3427.5,3426.9,0.07757914]
[1719775933815,3.981,3427.5,3426.8,2.4284]
[1719775934191,3.981,3427.5,3426.9,0.07757914]
[1719775934589,4.61447,3427.5,3426.9,0.07757914]
[1719775934928,3.77947,3427.5,3426.8,2.4284]
[1719775935089,0.835,3427.3,3427.0,0.07754477]
[1719775935819,1.531817,3427.3,3426.8,2.4284]
[1719775936021,0.835,3427.3,3427.2,0.07747602]
[1719775936227,0.835,3427.3,3426.8,2.4284]
[1719775936525,3.146,3427.5,3426.9,0.07757914]
[1719775936724,0.835,3427.4,3426.9,0.07757914]
[1719775937389,0.835,3427.4,3426.8,2.4284]
[1719775937607,0.835,3427.4,3427.0,0.07754477]
[1719775937927,0.835,3427.4,3427.1,0.07751039]
[1719775938106,0.835,3427.4,3426.8,2.4284]
[1719775938332,0.835,3427.4,3427.2,0.07747602]
[1719775938652,1.46847,3427.4,3426.8,2.4284]
[1719775938853,0.835,3427.4,3426.8,2.4284]
[1719775939021,0.835,3427.4,3426.9,0.07757914]